[Event "SixDays Budapest March IM C 2025"]
[Site "Budapest"]
[Date "2025.03.25"]
[Round "3.1"]
[White "Bashirov, Kemal"]
[Black "Nemeth, Zoltan"]
[Result "1-0"]
[Annotator "TA"]
[ECO "B15"]
[WhiteElo "2336"]
[BlackElo "2188"]
[PlyCount "119"]
[EventDate "2025.03.23"]
[EventCountry "HUN"]
[SourceTitle "playchess.com"]
[Source "ChessBase"]
[SourceQuality "1"]
[TimeControl "5400+30"]

{[%evp 14,119,28,27,33,19,48,36,50,40,50,39,43,43,48,41,47,47,48,37,83,77,79,79,95,68,96,75,60,85,86,86,81,87,76,55,47,8,18,8,15,8,64,64,156,159,146,152,151,115,152,164,160,146,246,181,184,189,189,180,342,335,342,342,342,342,342,309,268,268,3901,3032,2622,2394,1920,1580,29962,29963,29964,29966,29967,29968,29968,29969,29969,29970,29966,29967,29967,29968,29967,29968,29966,29965,29975,29976,29977,29978,29979,29980,29980,29981,29980,29981,29983,29983,29983,29983]} 1. e4 {[%emt 0:00:01]} c6 {[%emt 0:01:36]} 2. d4 {[%emt 0:00:05]} d5 {[%emt 0:00:06]} 3. Nc3 {[%emt 0:00:02]} dxe4 {[%emt 0:02:11]} 4. Nxe4 {[%emt 0:00:44]} Nf6 {[%emt 0:02:20]} 5. Nxf6+ {[%emt 0:00:10]} exf6 {[%emt 0:00:01]} 6. c3 {[%emt 0:00:05]} Bd6 {[%emt 0:00:26]} 7. Bd3 {[%emt 0:00:04]} O-O {[%emt 0:04:26]} 8. Qc2 {[%emt 0:00:09] Active counter play!} Re8+ {[%emt 0:00:37] B15: Caro-Kann: 3 Nc3: 3...g6 and 3...dxe4 4 Nxe4 Nf6 5 Nxf6+ exf6.} 9. Ne2 {[%emt 0:00:05][%cal Bg1e2,Be2g3,Bg3h5][%mdl 32]} h5 {[%emt 0:00:05]} 10. O-O {[%emt 0:00:03]} Qc7 {[%emt 0:03:27] White is slightly better.} 11. h3 {[%emt 0:01:25]} Nd7 {[%emt 0:06:14] [#]} 12. Ng3 $1 {[%emt 0:12:49]} c5 {[%emt 0:03:42]} 13. Nxh5 {[%emt 0:06:15][%cal Oc1h6] Bh6! would now be deadly.} (13. Bh7+ {is more complex.} Kh8 14. Nxh5 Nb6 15. Be4) 13... cxd4 {[%emt 0:00:06]} 14. cxd4 {[%emt 0:00:04]} Qxc2 {[%emt 0:00:14]} 15. Bxc2 {[%emt 0:00:05]} Nb6 {[%emt 0:03:13]} 16. Bf4 {[%emt 0:03:49]} Bxf4 $146 {[%emt 0:00:06]} (16... Bf8 $14) (16... Rd8 17. Rfd1 Be6 18. Be4 Bd5 19. Bxd5 Nxd5 20. Bxd6 Rxd6 21. Rd2 f5 22. Ng3 g6 {1-0 Balabayeva,K (2185)-Shnayder,V (1895) Cheliabinsk Lozovatsky Memorial-B 2023 (5)}) 17. Nxf4 $16 {[%emt 0:00:03]} Bd7 {[%emt 0:00:09]} 18. Rfe1 {[%emt 0:02:47]} Bc6 {[%emt 0:00:38]} 19. Bb3 {[%emt 0:04:28]} Kf8 {[%emt 0:09:10]} 20. d5 {[%emt 0:18:50]} Bb5 {[%emt 0:05:00]} 21. Rxe8+ {[%emt 0:01:43]} Rxe8 {[%emt 0:00:18]} 22. Rc1 {[%emt 0:00:42]} Rc8 {[%emt 0:03:17] [#] Against Rc5} 23. Rxc8+ {[%emt 0:09:30]} Nxc8 {[%emt 0:00:05][%mdl 4096] Endgame KBN-KBN. White is a pawn up.} 24. g4 {[%emt 0:02:06]} Ke7 {[%emt 0:04:56]} 25. Ng2 {[%emt 0:13:10]} Kd6 {[%emt 0:04:35]} 26. f4 {[%emt 0:00:58]} Bd3 {[%emt 0:13:15]} 27. Kf2 {[%emt 0:09:36]} Kc5 {[%emt 0:01:54]} ({Black should play} 27... f5 $11) 28. f5 $1 $14 {[%emt 0:02:02]} g5 {[%emt 0:05:32] Prevents Nf4.} (28... Nd6 $14) 29. fxg6 $16 {[%emt 0:01:28]} fxg6 {[%emt 0:00:02]} 30. Nf4 {[%emt 0:01:45]} Bb1 {[%emt 0:00:07]} 31. h4 {[%emt 0:00:11]} Kd4 {[%emt 0:05:53]} 32. Ne6+ {[%emt 0:02:01]} Ke5 {[%emt 0:00:37]} 33. Nc5 {[%emt 0:00:46]} f5 {[%emt 0:13:50]} (33... Nb6 $16 {was necessary.} 34. h5 (34. Nxb7 Nxd5 35. h5 gxh5 $16) 34... gxh5) 34. gxf5 {[%emt 0:02:24]} (34. Nxb7 $6 fxg4 35. Kg3 Bf5) 34... b6 {[%emt 0:02:18] [#]} 35. fxg6 $1 {[%emt 0:01:57]} bxc5 {[%emt 0:02:31]} 36. g7 {[%emt 0:00:02]} (36. h5 Kf6 $11) 36... Ne7 {[%emt 0:03:00] [#]} (36... Bh7) 37. d6 $1 $18 {[%emt 0:00:04][%mdl 512]} Kxd6 {[%emt 0:00:11]} 38. g8=Q {[%emt 0:00:03] Dodges Bh7} ({Don't take} 38. g8=R $6 Nxg8 39. Bxg8 Ke5 $18) (38. g8=B Ke5 39. Kg3 a5 $16) 38... Nxg8 {[%emt 0:00:05]} 39. Bxg8 {[%emt 0:00:03] KB-KB. White is a pawn up.} Bg6 {[%emt 0:00:28]} 40. Ke3 {[%emt 0:02:42]} Ke5 {[%emt 0:00:04]} 41. Bc4 {[%emt 0:00:03]} a5 $2 {[%emt 0:00:24]} (41... Be8 42. Kd3 Kf4) 42. a3 {[%emt 0:01:29]} Be8 {[%emt 0:00:16]} 43. Be2 {[%emt 0:00:31]} Kf5 {[%emt 0:00:20]} 44. h5 {[%emt 0:01:06][%cal Bh4h5,Bh5h6,Bh6h7][%mdl 32] Threatening mate with h6.} Bf7 {[%emt 0:01:13]} 45. h6 {[%emt 0:00:35] White mates.} Kf6 {[%emt 0:00:46]} 46. h7 {[%emt 0:01:38]} Kg7 {[%emt 0:00:09]} 47. Bd3 {[%emt 0:00:02]} Bd5 {[%emt 0:01:59]} 48. Kf4 {[%emt 0:00:06]} Bb3 {[%emt 0:01:08]} 49. Ke5 {[%emt 0:00:10]} c4 {[%emt 0:00:46]} 50. Be4 {[%emt 0:00:14]} Bd1 {[%emt 0:00:42]} 51. Kd5 {[%emt 0:00:16]} Be2 {[%emt 0:00:07]} 52. Kc5 {[%emt 0:03:34]} Bd3 {[%emt 0:00:09]} 53. Bd5 {[%emt 0:00:26]} Bxh7 {[%emt 0:00:26]} 54. Bxc4 {[%emt 0:00:01]} ({Less strong is} 54. Kxc4 Kf6 $16) 54... Kf6 {[%emt 0:00:08]} 55. Kb5 {[%emt 0:00:11]} Ke7 {[%emt 0:00:07]} 56. Kxa5 {[%emt 0:00:39]} Kd7 {[%emt 0:00:05]} 57. Kb6 {[%emt 0:00:03]} Bc2 {[%emt 0:01:07]} 58. Bb5+ {[%emt 0:00:20]} Kc8 {[%emt 0:00:06]} 59. Bc6 {[%emt 0:00:04]} Kb8 {[%emt 0:01:26]} 60. a4 {[%emt 0:00:06] Weighted Error Value: White=0.05 (flawless) /Black=0.35  Mistake:       	---       	Black=6      Inaccurate:     	White=1     	Black=3      OK:         	White=11    	Black=14     Best:        	White=3     	Black=2      Strong:       	White=1     	---        Brilliant:      	White=1     	---} 1-0

[Event "SixDays Budapest March IM C 2025"]
[Site "Budapest"]
[Date "2025.03.25"]
[Round "3.2"]
[White "Arias Gaviria, Mario Alexis"]
[Black "Mou, Iris"]
[Result "0-1"]
[Annotator "TA"]
[ECO "D02"]
[WhiteElo "2284"]
[BlackElo "2209"]
[PlyCount "138"]
[EventDate "2025.03.23"]
[EventCountry "HUN"]
[SourceTitle "playchess.com"]
[Source "ChessBase"]
[SourceQuality "1"]
[TimeControl "5400+30"]

{[%evp 11,138,20,25,16,25,17,39,36,44,14,4,13,0,0,0,0,0,0,0,0,0,-6,-6,-39,-46,-41,-50,-46,-44,-45,-45,-50,11,-7,49,50,37,25,57,56,226,223,236,213,248,256,304,303,294,291,324,304,349,311,335,322,307,306,321,293,295,282,277,283,308,308,309,304,265,291,372,397,439,438,498,498,762,762,714,668,684,591,610,598,620,629,702,658,876,876,770,648,1028,852,799,724,7104,29971,7131,9914,29971,29972,29980,0,0,0,0,0,0,0,0,0,0,-548,-548,-29979,-29980,-29980,-29981,-29981,-29982,-29981,-29983,-29983,-29984,-29984,-29984,-29982,-29983]} 1. d4 {[%emt 0:15:43]} d5 {[%emt 0:00:09]} 2. Nf3 {[%emt 0:00:07]} Nf6 {[%emt 0:00:06]} 3. c4 {[%emt 0:00:15]} e6 {[%emt 0:00:06]} 4. g3 {[%emt 0:00:34]} Bb4+ {[%emt 0:00:31]} 5. Bd2 {[%emt 0:00:05]} a5 {[%emt 0:00:16]} 6. Qc2 {[%emt 0:00:31]} c5 {[%emt 0:00:17]} 7. Bg2 {[%emt 0:02:03] E11: Bogo-Indian.} O-O {[%emt 0:05:22]} 8. cxd5 {[%emt 0:01:28]} cxd4 {[%emt 0:00:11]} 9. Nxd4 {[%emt 0:01:16] White is slightly better.} Qb6 {[%emt 0:00:10]} 10. Nf3 {[%emt 0:03:51]} exd5 {[%emt 0:01:23]} 11. O-O {[%emt 0:00:15] A sharp opening} Nc6 {[%emt 0:01:35]} 12. Bg5 {[%emt 0:03:51]} Be7 {[%emt 0:16:14]} 13. Nc3 {[%emt 0:01:11]} Rd8 {[%emt 0:05:46]} 14. Rad1 {[%emt 0:04:41]} Be6 {[%emt 0:02:28]} 15. Na4 {[%emt 0:07:54]} Qa7 {[%emt 0:03:38]} 16. Nc3 {[%emt 0:15:43][%cal Ba4c3,Bc3b5,Bb5d4,Bd4c6][%mdl 32]} Rac8 $146 {[%emt 0:06:15]} (16... Qc5 17. Qb1 h6 18. Bxf6 Bxf6 19. e3 Qc4 20. Rfe1 d4 21. Ne4 dxe3 22. Nxf6+ gxf6 {0-1 Bahamondes Ortiz,B (2248)-Raja,H (2487) Temuco op 2nd 2025 (7)}) 17. Qd3 {[%emt 0:07:27]} d4 {[%emt 0:06:03]} 18. Nb5 {[%emt 0:00:45][%csl LRa7,LRd4]} Qc5 {[%emt 0:03:16]} 19. Rc1 {[%emt 0:04:54]} Qb6 {[%emt 0:01:38] Hoping for ...Nb4.} 20. a4 {[%emt 0:03:39]} h6 {[%emt 0:07:20]} 21. Bd2 {[%emt 0:05:48]} Nd7 {[%emt 0:19:14]} (21... Bc5 $15) 22. Nbxd4 {[%emt 0:04:18]} (22. Nfxd4 {simplifies} Nxd4 23. Rxc8 Nxe2+ 24. Qxe2 Rxc8 25. Qe1) 22... Nde5 {[%emt 0:04:45] [#]} (22... Nxd4 $11 23. Qxd4 (23. Nxd4 $2 Ne5 $19) 23... Nc5) 23. Nxc6 $1 $14 {[%emt 0:04:42]} Rxc6 {[%emt 0:07:21]} 24. Rxc6 {[%emt 0:00:22]} bxc6 {[%emt 0:01:47]} 25. Qc2 {[%emt 0:00:08]} (25. Nxe5 Rxd3 (25... Qxb2 $2 26. Bc3 $18) 26. Nxd3 c5 $17) 25... Bb3 $2 {[%emt 0:03:14]} ({Black should play} 25... Nc4 $14) 26. Bxa5 $18 {[%emt 0:01:44]} Qxa5 {[%emt 0:02:28]} 27. Qxb3 {[%emt 0:00:04]} Nxf3+ {[%emt 0:01:29]} 28. Bxf3 {[%emt 0:00:05]} c5 {[%emt 0:00:37]} 29. Bd5 {[%emt 0:01:26]} Rf8 {[%emt 0:00:04]} 30. Rd1 {[%emt 0:01:16]} Qc7 {[%emt 0:00:43]} 31. Qc4 {[%emt 0:00:19]} Bd6 {[%emt 0:00:37][%cal Be7d6,Bd6e5,Be5f6,Bf6b2,Bb2d4][%mdl 32]} 32. Qa6 {[%emt 0:00:46]} Be5 {[%emt 0:00:27]} 33. b3 {[%emt 0:00:22]} Rd8 {[%emt 0:00:25]} 34. Qc4 {[%emt 0:00:39][%cal Od5f7]} Rb8 {[%emt 0:00:10]} 35. f4 {[%emt 0:01:32]} Bf6 {[%emt 0:00:27]} 36. Rc1 {[%emt 0:00:30]} Qe7 {[%emt 0:00:32]} 37. e4 {[%emt 0:00:27][%cal Oe4e5]} (37. Qxc5 $2 Qxc5+ 38. Rxc5 Bd4+ 39. Kg2 Bxc5 $19) 37... Bb2 {[%emt 0:00:51]} 38. Rd1 {[%emt 0:02:54]} (38. Qxc5 $2 Qxc5+ 39. Rxc5 Bd4+ 40. Kg2 Bxc5 $19) 38... Qa7 {[%emt 0:00:23]} 39. Kg2 {[%emt 0:00:17]} Bd4 {[%emt 0:00:20]} 40. h4 {[%emt 0:03:18]} Qd7 {[%emt 0:00:35]} 41. a5 {[%emt 0:01:00][%cal Ba4a5,Ba5a6][%mdl 32]} Rb4 {[%emt 0:00:49]} 42. Qd3 {[%emt 0:01:05]} Rb5 {[%emt 0:00:45]} 43. a6 {[%emt 0:00:15][%cal Oa6a7]} Rb4 {[%emt 0:00:27]} (43... Rb8 $142 44. Bc4 g6) 44. Rd2 {[%emt 0:00:45][%cal Bd1d2,Bd2a2,Ba2a4,Ba4c4][%mdl 32]} Qa7 {[%emt 0:00:26]} 45. Ra2 {[%emt 0:00:23]} Rb6 {[%emt 0:00:18]} 46. Ra4 {[%emt 0:01:01]} Rb8 {[%emt 0:00:21]} 47. h5 {[%emt 0:00:29]} Kf8 {[%emt 0:00:44]} 48. Bb7 {[%emt 0:01:00]} Kg8 {[%emt 0:00:23]} 49. Qb5 {[%emt 0:00:17]} Rd8 {[%emt 0:00:10]} 50. Bd5 {[%emt 0:00:14]} c4 {[%emt 0:01:07]} 51. Rxc4 {[%emt 0:01:19]} Rb8 {[%emt 0:00:37] [#]} 52. Qxb8+ {[%emt 0:00:52][%mdl 512]} Qxb8 {[%emt 0:00:04]} 53. Rxd4 {[%emt 0:00:02][%mdl 4096] Endgame Threatens to win with Ra4. KQ-KRB} Qb6 {[%emt 0:00:59]} 54. Ra4 {[%emt 0:00:19]} Qa7 {[%emt 0:00:29]} 55. Ra2 {[%emt 0:00:09]} Kh7 {[%emt 0:00:27] [#]} 56. Bxf7 $1 {[%emt 0:01:09]} Kh8 {[%emt 0:00:17] [#]} (56... g5 57. hxg6+) 57. b4 $2 {[%emt 0:00:17]} Qxf7 $11 {[%emt 0:00:08] KQ-KR} 58. Ra5 {[%emt 0:00:43] White threatens a7 and mate.} Qa7 {[%emt 0:00:30]} (58... Qe7 $5 59. a7 $8 Qxe4+ (59... Qxb4 $2 {loses.} 60. a8=Q+ Kh7 61. Qd5 $18) 60. Kf2 Qc2+ (60... Qxb4 $2 61. a8=Q+ Kh7 62. Qd5 $18) 61. Ke1 Qe4+ 62. Kf2 $11) 59. Kf3 {[%emt 0:00:55]} Kh7 {[%emt 0:00:31]} 60. f5 {[%emt 0:00:19]} Kg8 {[%emt 0:00:52]} 61. Kg4 {[%emt 0:00:39]} Kf7 {[%emt 0:00:36]} (61... Qd4 $5 62. a7 $8 Qxe4+ 63. Kh3 Qh1+ (63... Qxb4 64. a8=Q+ Kh7 65. Qd5 Qf8 66. Ra8) 64. Kg4 Qe4+ $11) 62. b5 $2 {[%emt 0:00:28][%mdl 8192]} (62. Kf3 $11 {and White has nothing to worry.}) 62... Qd4 $19 {[%emt 0:00:26]} 63. a7 {[%emt 0:00:34]} Qxe4+ {[%emt 0:00:05] Black mates.} 64. Kh3 {[%emt 0:00:04]} Qxf5+ {[%emt 0:00:06]} 65. Kg2 {[%emt 0:00:39]} Qd5+ {[%emt 0:00:09]} (65... Qxh5 66. a8=Q (66. a8=R Qd5+ 67. Kh2 Qh5+ 68. Kg1 Qe5 $11) 66... Qe2+ 67. Kg1 Qd1+ 68. Kf2 Qd2+ 69. Kf3 Qd3+ 70. Kf4 Qd4+ 71. Qe4 (71. Kf3 Qd3+ 72. Kf4 Qd4+ 73. Qe4 Qd2+ 74. Kg4 Qxa5 $14) 71... Qd2+ 72. Kg4 Qxa5 73. Qd5+ Ke7 74. Qc5+ Kf7 75. Qc6 $11) 66. Kh3 {[%emt 0:00:20]} Qxh5+ {[%emt 0:00:07]} 67. Kg2 {[%emt 0:00:01] [#]} Qd5+ $1 {[%emt 0:00:04]} 68. Kh3 {[%emt 0:00:24]} Qd7+ {[%emt 0:00:03]} 69. g4 {[%emt 0:01:05]} Qd3+ {[%emt 0:00:05] What a bad dream for White.   Weighted Error Value: White=0.07 (flawless) /Black=0.31  Loses game:     	White=1     	Black=1      Mistake:       	---       	Black=3      Inaccurate:     	White=3     	Black=1      OK:         	White=21    	Black=22     Best:        	White=2     	Black=1      Strong:       	White=1     	---} 0-1

[Event "SixDays Budapest March IM C 2025"]
[Site "Budapest"]
[Date "2025.03.25"]
[Round "3.3"]
[White "Balla, Tamas-Kristof"]
[Black "Georgiadis, Anastasios"]
[Result "1-0"]
[Annotator "TA"]
[ECO "A07"]
[WhiteElo "2320"]
[BlackElo "2229"]
[PlyCount "87"]
[EventDate "2025.03.23"]
[EventCountry "HUN"]
[SourceTitle "playchess.com"]
[Source "ChessBase"]
[SourceQuality "1"]
[TimeControl "5400+30"]

{[%evp 10,87,17,4,4,2,0,0,21,13,17,13,8,15,29,10,5,8,11,5,8,6,14,0,0,0,0,-4,11,11,19,15,12,12,19,9,20,20,49,22,30,33,33,42,87,64,66,66,152,178,175,181,181,189,185,170,174,178,183,190,191,193,688,672,664,638,1017,930,964,866,1334,1316,1418,1408,5610,5196,4877,2200,2542,3033]} 1. Nf3 {[%emt 0:07:45]} Nf6 {[%emt 0:00:08]} 2. g3 {[%emt 0:00:31]} d5 {[%emt 0:00:11]} 3. Bg2 {[%emt 0:00:05]} c6 {[%emt 0:00:07]} 4. O-O {[%emt 0:00:22]} Bg4 {[%emt 0:00:34]} 5. h3 {[%emt 0:00:09]} Bxf3 {[%emt 0:00:21]} 6. Bxf3 {[%emt 0:00:06]} e5 {[%emt 0:00:31] A07: Réti Opening: New York and Capablanca Systems.} 7. d3 {[%emt 0:00:05]} Nbd7 {[%emt 0:01:11]} 8. e4 {[%emt 0:00:16]} dxe4 {[%emt 0:01:29] The position is equal.} 9. dxe4 {[%emt 0:00:08]} Bc5 {[%emt 0:01:38]} 10. c3 {[%emt 0:02:33]} O-O {[%emt 0:02:04]} 11. Nd2 {[%emt 0:00:38] The position is symmetric and equal} Qe7 {[%emt 0:04:14]} 12. Qe2 {[%emt 0:03:11]} a5 {[%emt 0:05:10]} 13. a4 {[%emt 0:00:31] Not much happening anymore} Qe6 {[%emt 0:05:38]} 14. Kg2 $146 {[%emt 0:06:54]} (14. Bg2 Nb6 15. Re1 Rfd8 16. Nf1 Nc4 17. Bg5 h6 18. Bxf6 Qxf6 19. Rad1 Qe6 20. Qc2 {½-½ Buese,R (2044)-Griffith,D (2121) IECG CP.1998.Q.00016 1999}) 14... Rfd8 {[%emt 0:01:52]} 15. Qc4 {[%emt 0:06:38]} Qe7 {[%emt 0:02:45]} 16. Nb3 {[%emt 0:03:45]} Bb6 {[%emt 0:01:18]} 17. Rd1 {[%emt 0:04:26]} h6 {[%emt 0:03:54]} 18. Bd2 {[%emt 0:06:25]} Nc5 {[%emt 0:07:27]} 19. Nxc5 {[%emt 0:01:38]} Bxc5 {[%emt 0:01:38]} 20. Be1 {[%emt 0:02:07]} Bb6 {[%emt 0:01:58]} 21. Rxd8+ {[%emt 0:02:37]} Rxd8 {[%emt 0:00:18]} 22. Rd1 {[%emt 0:00:10]} Rxd1 {[%emt 0:00:18]} 23. Bxd1 {[%emt 0:00:11]} Nd7 {[%emt 0:12:01]} 24. b4 {[%emt 0:01:43]} axb4 {[%emt 0:02:08]} 25. cxb4 {[%emt 0:00:32]} Bd4 {[%emt 0:02:33]} 26. a5 {[%emt 0:02:57]} Nb8 {[%emt 0:14:11]} 27. Bb3 {[%emt 0:03:15]} Qd7 {[%emt 0:06:11]} 28. Ba4 {[%emt 0:01:36]} Kh7 {[%emt 0:08:00] [#] Black is now going downhill.} ({Black should play} 28... Qe6 $14 29. Qxe6 fxe6) 29. b5 $1 $16 {[%emt 0:02:06]} cxb5 {[%emt 0:03:21]} 30. Bxb5 {[%emt 0:01:02]} Qe7 {[%emt 0:00:59]} 31. Qc8 {[%emt 0:06:25] Against Bc5} Ba7 {[%emt 0:00:20] Black is weak on the light squares} 32. Bc3 {[%emt 0:02:18]} g6 {[%emt 0:00:48]} 33. Qe8 {[%emt 0:06:14]} Qxe8 {[%emt 0:01:02]} 34. Bxe8 $18 {[%emt 0:00:06][%mdl 4096] Endgame KBB-KBN This pair of bishops is nice.} f6 {[%emt 0:00:15]} 35. f4 {[%emt 0:00:23]} Bd4 $2 {[%emt 0:03:15]} (35... exf4 36. gxf4 (36. Bxf6 fxg3 37. Kxg3 Na6 $16) 36... Kg7) 36. Bxd4 {[%emt 0:05:11] White is clearly winning.} exd4 {[%emt 0:00:01] KB-KN} 37. Bb5 {[%emt 0:00:12]} Kg7 {[%emt 0:01:44]} 38. Kf3 {[%emt 0:00:22]} Kf7 {[%emt 0:00:12]} 39. Ke2 {[%emt 0:00:25]} Ke6 {[%emt 0:00:27]} 40. Kd3 {[%emt 0:00:06]} g5 {[%emt 0:00:17]} 41. Kxd4 {[%emt 0:00:30]} gxf4 {[%emt 0:00:04]} 42. gxf4 {[%emt 0:00:11][%cal Bg3f4,Bf4e5][%mdl 32] [#] White wants to mate with Kc5.} Kd6 {[%emt 0:00:09]} 43. e5+ {[%emt 0:01:36]} fxe5+ {[%emt 0:00:04]} 44. fxe5+ {[%emt 0:00:09] Weighted Error Value: White=0.03 (flawless) /Black=0.71  Mistake:       	---       	Black=2      Inaccurate:     	White=1     	Black=2      OK:         	White=15    	Black=13     Best:        	White=2     	---        Strong:       	White=1     	---} 1-0

[Event "SixDays Budapest March IM C 2025"]
[Site "Budapest"]
[Date "2025.03.25"]
[Round "3.4"]
[White "Szeberenyi, Adam"]
[Black "Lau, Lut Yin Luke"]
[Result "1/2-1/2"]
[Annotator "TA"]
[ECO "D41"]
[WhiteElo "2294"]
[BlackElo "2240"]
[PlyCount "53"]
[EventDate "2025.03.23"]
[EventCountry "HUN"]
[SourceTitle "playchess.com"]
[Source "ChessBase"]
[SourceQuality "1"]
[TimeControl "5400+30"]

{[%evp 21,53,0,27,27,38,0,0,4,0,4,10,11,17,9,11,2,2,0,0,0,0,0,0,0,0,0,0,0,0,0,0,0,0,0]} 1. d4 {[%emt 0:03:51]} Nf6 {[%emt 0:00:14]} 2. c4 {[%emt 0:01:00]} e6 {[%emt 0:00:29]} 3. Nf3 {[%emt 0:00:07]} d5 {[%emt 0:00:20]} 4. Nc3 {[%emt 0:00:04]} c5 {[%emt 0:00:18]} 5. cxd5 {[%emt 0:00:08]} Nxd5 {[%emt 0:00:06]} 6. e4 {[%emt 0:00:08]} Nxc3 {[%emt 0:00:08]} 7. bxc3 {[%emt 0:00:03]} cxd4 {[%emt 0:00:07]} 8. cxd4 {[%emt 0:00:26]} Bb4+ {[%emt 0:00:06]} 9. Bd2 {[%emt 0:00:05]} Bxd2+ {[%emt 0:00:07]} 10. Qxd2 {[%emt 0:00:04]} O-O {[%emt 0:00:09]} 11. Bc4 {[%emt 0:00:12]} Nd7 {[%emt 0:00:04]} 12. O-O {[%emt 0:00:32] D41: Queen's Gambit Declined: Semi-Tarrasch with 5 cxd5.} b6 {[%emt 0:00:20]} 13. d5 {[%emt 0:01:33]} Nf6 {[%emt 0:01:44] The position is equal.} 14. Qf4 {[%emt 0:00:06]} exd5 {[%emt 0:03:03]} 15. Rad1 {[%emt 0:00:04]} Bd7 $146 {[%emt 0:15:38][%cal Bc8d7,Bd7e6,Be6d5][%mdl 32]} (15... Qd7 16. exd5 Qg4 17. Qc7 Qh5 18. Ne5 Bh3 19. Rfe1 Rac8 20. Qxa7 Bxg2 21. Kxg2 Ng4 {0-1 Wojtaszek,R (2681)-Nguyen,N (2633) Olympiad-45 Budapest 2024 (5.4)}) 16. Bxd5 {[%emt 0:05:04] [#]} Nxd5 {[%emt 0:01:04]} 17. Rxd5 {[%emt 0:00:17]} Qe8 {[%emt 0:06:49]} 18. Nd4 {[%emt 0:07:13]} Be6 {[%emt 0:05:12] [#]} 19. Nf5 $1 {[%emt 0:17:30][%cal Of5g7] Strongly threatening Nxg7!.} Bxd5 {[%emt 0:07:26]} (19... Bxf5 20. exf5) 20. Qg5 $1 {[%emt 0:00:08][%csl Gf5][%cal Rg5g7]} g6 {[%emt 0:00:27]} 21. Nh6+ {[%emt 0:05:40]} Kg7 {[%emt 0:00:07]} 22. Nf5+ {[%emt 0:00:08]} Kg8 {[%emt 0:00:05]} 23. Qf6 {[%emt 0:00:47][%csl Gf5][%cal Rf6g7] Inhibits f6.} gxf5 {[%emt 0:00:12]} 24. Qg5+ {[%emt 0:00:02]} Kh8 {[%emt 0:00:07]} 25. Qf6+ {[%emt 0:00:03]} Kg8 {[%emt 0:00:05]} 26. Qg5+ {[%emt 0:00:02]} Kh8 {[%emt 0:00:05]} 27. Qf6+ {[%emt 0:00:02] Not much happened in this game.   Weighted Error Value: White=0.02 (flawless) /Black=0.04 (flawless)   Inaccurate:     	White=1     	---        OK:         	White=5     	Black=6      Best:        	White=3     	Black=3      Strong:       	White=1     	---} 1/2-1/2